bitfinex-derivatives/quotes_BTCF0:USTF0_20241226
["timestamp","ask_amount","ask_price","bid_price","bid_amount"]
[1735175373958,0.401261,98934.0,98933.0,0.01247962]
[1735175374262,0.040464,98927.0,98926.0,0.30148538]
[1735175374456,0.401264,98927.0,98926.0,0.30148538]
[1735175374652,0.401264,98927.0,98919.0,0.040467]
[1735175374653,0.3608,98927.0,98919.0,0.040467]
[1735175374860,0.040466,98922.0,98919.0,0.040467]
[1735175375260,0.3608,98923.0,98912.0,0.04047]
[1735175375555,0.3608,98923.0,98917.0,7.218e-05]
[1735175375556,0.040467,98918.0,98917.0,7.218e-05]
[1735175375762,0.040471,98908.0,98907.0,0.30148538]
[1735175375963,0.401271,98908.0,98907.0,0.30148538]
[1735175376366,0.401271,98908.0,98905.0,0.040472]
[1735175377558,0.401271,98908.0,98907.0,0.002]
[1735175377763,0.401271,98908.0,98907.0,0.042472]
[1735175378061,0.401271,98908.0,98907.0,0.040472]
[1735175378265,0.403271,98908.0,98907.0,0.040472]
[1735175378869,0.403271,98908.0,98907.0,0.049472]
[1735175379556,0.402271,98908.0,98907.0,0.049472]
[1735175379750,0.402271,98908.0,98907.0,0.051472]
[1735175380662,0.4111401,98908.0,98907.0,0.051472]
[1735175384762,0.4111401,98908.0,98907.0,0.011]
[1735175390162,0.3618,98908.0,98907.0,0.011]
[1735175390471,0.11957019,98920.0,98919.0,0.040467]
[1735175390856,0.48037019,98920.0,98919.0,0.040467]
[1735175391165,0.15109626,98928.0,98927.0,0.040464]
[1735175391367,0.00151683,98928.0,98927.0,0.401264]
[1735175398569,0.00151683,98928.0,98927.0,0.040464]
[1735175398779,0.040464,98927.0,98921.0,0.040466]
[1735175399367,0.040464,98927.0,98922.0,0.040466]
[1735175399568,0.00151683,98928.0,98922.0,0.040466]
[1735175399767,0.3608,98927.0,98918.0,0.3608]
[1735175399972,0.040465,98923.0,98918.0,0.3608]
[1735175400277,0.040467,98920.0,98918.0,0.3608]
[1735175400572,0.040468,98916.0,98912.0,0.04047]
[1735175400876,0.3608,98927.0,98907.0,0.3608]
[1735175401072,0.040466,98923.0,98916.0,0.040468]
[1735175401275,0.040466,98922.0,98921.0,0.003]
[1735175401672,0.040466,98922.0,98918.0,0.040467]
[1735175401972,0.37112095,98927.0,98912.0,0.007]
[1735175402177,0.09802004,98922.0,98912.0,0.009]
[1735175402475,0.09802004,98922.0,98912.0,0.002]
[1735175402476,0.040469,98913.0,98912.0,0.002]
[1735175402773,0.040469,98913.0,98897.0,0.040476]
[1735175402774,0.040474,98902.0,98897.0,0.040476]
[1735175403369,0.04923845,98902.0,98897.0,0.040476]
[1735175404872,0.05023845,98902.0,98897.0,0.040476]
[1735175405071,0.040476,98898.0,98897.0,0.009]
[1735175406479,0.01076445,98902.0,98897.0,0.009]
[1735175406679,0.01076445,98902.0,98897.0,0.049476]
[1735175407277,0.001,98898.0,98897.0,0.049476]
[1735175409082,0.00895983,98922.0,98916.0,0.040468]
[1735175409280,0.00895983,98922.0,98917.0,0.3608]
[1735175409783,0.00895983,98922.0,98916.0,0.040468]
[1735175409981,0.040466,98922.0,98916.0,0.040468]
[1735175410383,0.040464,98926.0,98919.0,0.040467]
[1735175410675,0.040464,98926.0,98916.0,0.006]
[1735175410989,0.040464,98926.0,98923.0,0.040465]
[1735175412381,0.040464,98926.0,98923.0,0.041465]
[1735175413380,0.040465,98925.0,98923.0,0.003]
[1735175417290,0.04047,98913.0,98905.0,0.401272]
[1735175417489,0.040471,98909.0,98905.0,0.040472]
[1735175417690,0.3608,98913.0,98898.0,0.040475]
[1735175417888,0.09802004,98910.0,98898.0,0.040475]
[1735175418077,0.3608,98903.0,98891.0,0.040478]
[1735175418282,0.141,98902.0,98891.0,0.040478]
[1735175418483,0.040476,98897.0,98891.0,0.040478]
[1735175419586,0.040477,98896.0,98891.0,0.040478]
[1735175420692,0.040477,98896.0,98891.0,0.049478]
[1735175421089,0.040477,98896.0,98891.0,0.040478]
[1735175421301,0.042477,98896.0,98892.0,0.01443496]
[1735175421593,0.042477,98896.0,98894.0,0.040477]
[1735175421996,0.042477,98896.0,98895.0,0.01443496]
[1735175423988,0.041477,98896.0,98895.0,0.01443496]
[1735175424193,0.002,98896.0,98895.0,0.02343496]
[1735175424496,0.002,98896.0,98895.0,0.009]
[1735175424995,0.002,98896.0,98895.0,0.0762]
[1735175425298,0.14957943,98917.0,98901.0,0.040474]
[1735175425498,0.14957943,98917.0,98916.0,0.040468]
[1735175426185,0.14957943,98917.0,98916.0,0.401268]
[1735175426892,0.14957943,98937.0,98927.0,0.040464]
[1735175427082,0.00882962,98934.0,98927.0,0.401264]
[1735175427693,0.14957943,98937.0,98936.0,0.04046]
[1735175427891,0.18064046,98943.0,98942.0,0.040458]
[1735175428088,0.14950321,98946.0,98936.0,0.3608]
[1735175428287,0.14950321,98946.0,98945.0,0.040456]
[1735175429693,0.040452,98957.0,98944.0,0.3608]
[1735175429888,0.00898865,98957.0,98944.0,0.3608]
[1735175430201,0.0736,98961.0,98955.0,0.040452]
[1735175430586,0.002,98946.0,98945.0,0.040456]
[1735175430992,0.001,98946.0,98944.0,0.3608]
[1735175431196,0.001,98946.0,98945.0,0.040456]
[1735175431895,0.003,98946.0,98945.0,0.040456]
[1735175433511,0.003,98946.0,98945.0,0.401256]
[1735175438099,0.003,98946.0,98945.0,0.040456]
[1735175441702,0.003,98946.0,98944.0,0.3608]
[1735175441907,0.003,98946.0,98916.0,0.040468]
[1735175441908,0.040466,98921.0,98916.0,0.040468]
[1735175442104,0.040457,98944.0,98910.0,0.30148538]
[1735175442105,0.3608,98919.0,98910.0,0.30148538]
[1735175442407,0.401267,98919.0,98910.0,0.040471]
[1735175442609,0.3015,98935.0,98925.0,0.040464]
[1735175442610,1.19,98929.0,98925.0,0.040464]
[1735175442809,0.3608,98931.0,98915.0,0.3608]
[1735175443004,0.09802004,98930.0,98923.0,0.040465]
[1735175443202,0.040463,98929.0,98922.0,0.040466]
[1735175443708,0.3608,98923.0,98916.0,0.040468]
[1735175443913,0.3608,98923.0,98917.0,0.040468]
[1735175444110,0.040468,98917.0,98915.0,0.041469]
[1735175444510,0.040468,98917.0,98915.0,0.046469]
[1735175445297,0.0718,98916.0,98915.0,0.046469]
[1735175445904,0.0718,98916.0,98915.0,0.041469]
[1735175446216,0.0718,98916.0,98915.0,0.040469]
[1735175446808,0.0718,98916.0,98915.0,0.045469]
[1735175447111,0.0718,98916.0,98915.0,0.046469]
[1735175450012,0.0718,98916.0,98915.0,0.006]
[1735175450318,0.0092003,98917.0,98915.0,0.006]
[1735175450614,0.3608,98923.0,98915.0,0.006]
[1735175450803,0.3608,98923.0,98918.0,0.040467]
[1735175451414,0.3608,98923.0,98921.0,0.040466]
[1735175452010,0.37027283,98923.0,98921.0,0.040466]
[1735175452813,0.3608,98931.0,98929.0,0.040462]
[1735175453419,0.3608,98931.0,98921.0,0.003]
[1735175453420,0.11912157,98934.0,98933.0,0.040461]
[1735175454315,0.00938683,98941.0,98935.0,0.04046]
[1735175456217,0.0035168,98936.0,98935.0,0.04046]
[1735175456922,0.0065168,98936.0,98935.0,0.04046]
[1735175460827,0.005,98936.0,98935.0,0.04046]
[1735175461828,3.77,98946.0,98945.0,0.040456]
[1735175462034,3.77,98946.0,98945.0,0.401256]
[1735175462922,3.771,98946.0,98945.0,0.401256]
[1735175463127,3.773,98946.0,98945.0,0.401256]
[1735175465233,2.66388674,98946.0,98945.0,0.51219279]
[1735175466327,2.66388674,98946.0,98945.0,0.401256]
[1735175466532,2.47888911,98946.0,98945.0,0.71036586]
[1735175466831,0.11912157,98971.0,98945.0,0.81862664]
[1735175467037,0.11912157,98982.0,98970.0,0.7216]
[1735175467228,0.11912157,98982.0,98981.0,0.3608]
[1735175468830,0.20216,98984.0,98981.0,0.3608]
[1735175469534,0.001,98982.0,98978.0,0.3608]
[1735175469737,0.002,98982.0,98961.0,0.00151565]
[1735175469933,0.09802004,98980.0,98961.0,0.04196565]
[1735175470242,1.19,98979.0,98966.0,0.3608]
[1735175470436,0.040446,98970.0,98966.0,0.3608]
[1735175470824,0.20216,98978.0,98966.0,0.3608]
[1735175471031,0.040444,98975.0,98969.0,0.040446]
[1735175472138,0.20216,98978.0,98969.0,0.040446]
[1735175472535,0.20216,98978.0,98969.0,0.041446]
[1735175473044,0.040445,98973.0,98969.0,0.041446]
[1735175473940,0.20216,98978.0,98975.0,0.040444]
[1735175474138,0.04044,98987.0,98981.0,0.040441]
[1735175474533,0.20216,98986.0,98981.0,0.040441]
[1735175474742,0.20216,98986.0,98975.0,0.3608]
[1735175474943,0.071,98997.0,98986.0,0.040439]
[1735175474944,0.040438,98991.0,98986.0,0.040439]
[1735175475139,0.040438,98990.0,98986.0,0.040439]
[1735175475335,0.043439,98987.0,98980.0,0.040442]
[1735175475539,0.003,98987.0,98984.0,0.3608]
[1735175475740,0.04044,98986.0,98984.0,0.3608]
[1735175476645,0.20516,98987.0,98984.0,0.3608]
[1735175476845,0.002,98986.0,98985.0,0.04044]
[1735175477239,0.001,98986.0,98985.0,0.04044]
[1735175477547,0.001,98986.0,98985.0,0.10624]
[1735175477548,0.003,98986.0,98985.0,0.10624]
[1735175477947,0.004,98986.0,98985.0,0.10624]
[1735175478247,0.004,98986.0,98985.0,0.11578638]
[1735175478952,0.003,98986.0,98985.0,0.11578638]
[1735175479837,0.005,98986.0,98985.0,0.11578638]
[1735175480240,0.005,98986.0,98985.0,0.10624]
[1735175480635,0.005,98986.0,98985.0,0.04044]
[1735175481036,0.04044,98984.0,98978.0,0.040443]
[1735175481548,0.04044,98984.0,98975.0,0.3608]
[1735175481549,0.005,98986.0,98983.0,0.3608]
[1735175482044,0.005,98986.0,98984.0,0.04044]
[1735175482243,0.003,98986.0,98984.0,0.04044]
[1735175483039,0.001,98986.0,98984.0,0.04044]
[1735175483640,0.040437,98994.0,98983.0,0.3608]
[1735175483943,0.003,98986.0,98984.0,0.04044]
[1735175484739,0.001,98986.0,98983.0,0.3608]
[1735175484946,0.2426,98985.0,98983.0,0.3608]
[1735175485346,0.040444,98976.0,98971.0,0.040446]
[1735175485647,0.0706,98975.0,98971.0,0.040446]
[1735175485849,0.27276,98975.0,98971.0,0.040446]
[1735175486243,0.27276,98975.0,98964.0,0.3608]
[1735175486443,0.27276,98975.0,98972.0,0.040445]
[1735175486444,0.0706,98975.0,98972.0,0.040445]
[1735175486845,0.27276,98975.0,98972.0,0.040445]
[1735175487753,0.27276,98975.0,98964.0,0.3668]
[1735175487955,0.0706,98975.0,98972.0,0.003]
[1735175488146,0.0706,98975.0,98973.0,0.040445]
[1735175488450,0.27276,98975.0,98973.0,0.040445]
[1735175489143,0.20216,98985.0,98973.0,0.040445]
[1735175489451,0.0665,98989.0,98988.0,0.040439]
[1735175489840,0.26866,98989.0,98988.0,0.040439]
[1735175490454,0.27266,98989.0,98988.0,0.040439]
[1735175490653,0.040439,98988.0,98982.0,0.401241]
[1735175491060,0.040439,98988.0,98983.0,0.040441]
[1735175491350,0.040439,98988.0,98984.0,0.04044]
[1735175491545,0.20616,98989.0,98987.0,0.040439]
[1735175491746,0.004,98989.0,98987.0,0.040439]
[1735175492149,0.006,98989.0,98987.0,0.040439]
[1735175493055,0.0672,98990.0,98989.0,0.040438]
[1735175493447,0.20216,98991.0,98989.0,0.040438]
[1735175493648,0.1,99000.0,98999.0,0.040434]
[1735175494757,0.103,99000.0,98999.0,0.040434]
[1735175495670,0.103,99000.0,98998.0,0.3608]
[1735175495856,0.103,99000.0,98990.0,0.3608]
[1735175495857,0.143434,99000.0,98993.0,0.040437]
[1735175496061,0.145434,99000.0,98993.0,0.040437]
[1735175496760,0.145434,99000.0,98994.0,0.040436]
[1735175497155,0.040434,98999.0,98994.0,0.040436]
[1735175497463,0.040435,98998.0,98994.0,0.040436]
[1735175498266,0.16005084,98998.0,98994.0,0.040436]
[1735175498972,0.11961584,98998.0,98997.0,0.040435]
[1735175499157,0.12061584,98998.0,98997.0,0.040435]
[1735175500460,0.12061584,98998.0,98990.0,0.7216]
[1735175500461,0.12261584,98998.0,98990.0,0.7216]
[1735175500968,0.003,98998.0,98990.0,0.7216]
[1735175501266,0.003,98998.0,98992.0,0.040437]
[1735175501663,0.003,98998.0,98994.0,0.040436]
[1735175501858,0.004,98998.0,98994.0,0.040436]
[1735175503059,0.002,98998.0,98994.0,0.040436]
[1735175503260,0.005,98998.0,98994.0,0.040436]
[1735175503471,0.007,98998.0,98994.0,0.040436]
[1735175503657,0.007,98998.0,98990.0,0.7216]
[1735175503862,0.007,98998.0,98995.0,0.040436]
[1735175504065,0.005,98998.0,98995.0,0.040436]
[1735175504773,0.003,98998.0,98995.0,0.040436]
[1735175505461,0.002,98998.0,98995.0,0.040436]
[1735175505662,0.003,98998.0,98995.0,0.040436]
[1735175506067,0.003,98998.0,98996.0,0.040435]
[1735175506461,0.20216,98997.0,98996.0,0.040435]
[1735175507767,0.20416,98997.0,98996.0,0.040435]
[1735175508572,0.20516,98997.0,98996.0,0.040435]
[1735175510375,0.040436,98996.0,98990.0,0.3608]
[1735175511479,0.08987493,98992.0,98990.0,0.3608]
[1735175512668,0.09287493,98992.0,98990.0,0.3608]
[1735175513275,0.3608,98991.0,98983.0,0.18137744]
[1735175513481,0.04044,98984.0,98983.0,0.18137744]
[1735175514381,0.04044,98984.0,98983.0,0.07327744]
[1735175514584,0.040445,98972.0,98962.0,0.24198517]
[1735175514881,0.3608,98970.0,98962.0,0.24198517]
[1735175515074,0.3608,98970.0,98962.0,0.28243417]
[1735175515577,0.3608,98970.0,98962.0,0.24198517]
[1735175516082,0.08990051,98968.0,98967.0,0.040447]
[1735175516482,0.040453,98954.0,98941.0,0.36080918]
[1735175516676,0.3608,98950.0,98941.0,0.36080918]
[1735175516878,0.401258,98942.0,98941.0,0.36080918]
[1735175518079,0.3608,98942.0,98921.0,0.040466]
[1735175518273,0.3608,98929.0,98921.0,0.040466]
[1735175519179,0.3608,98929.0,98921.0,0.044466]
[1735175519979,0.040463,98928.0,98921.0,0.053466]
[1735175520685,0.040463,98928.0,98921.0,0.049466]
[1735175520870,0.3628,98929.0,98923.0,0.040465]
[1735175521075,0.3618,98929.0,98928.0,0.040463]
[1735175521578,0.001,98929.0,98928.0,0.040463]
[1735175522169,0.18760765,98940.0,98929.0,0.040463]
[1735175522980,0.09802004,98940.0,98929.0,0.040463]
[1735175523482,0.09902004,98940.0,98929.0,0.049463]
[1735175523685,0.09902004,98940.0,98930.0,0.040462]
[1735175525072,0.040462,98930.0,98906.0,0.00151652]
[1735175525274,0.3608,98908.0,98884.0,0.202]
[1735175525580,0.13849704,98894.0,98884.0,0.202]
[1735175525773,0.13849704,98894.0,98882.0,0.0535417]
[1735175525989,0.401281,98885.0,98882.0,0.0037]
[1735175526177,0.00012805,98884.0,98882.0,0.0037]
[1735175526488,0.00012805,98884.0,98883.0,0.01446498]
[1735175528983,0.00112805,98884.0,98875.0,0.040485]
[1735175529184,0.00112805,98884.0,98855.0,0.00151739]
[1735175529185,0.00112805,98884.0,98878.0,0.040483]
[1735175529576,0.00112805,98884.0,98879.0,0.040483]
[1735175530090,0.00012805,98884.0,98879.0,0.040483]
[1735175530891,0.00012805,98884.0,98881.0,0.3608]
[1735175531090,0.00012805,98884.0,98883.0,0.040482]
[1735175532286,0.00212805,98884.0,98883.0,0.040482]
[1735175533994,0.00212805,98884.0,98881.0,0.3608]
[1735175534192,0.3608,98883.0,98848.0,0.3608]
[1735175534387,0.09802004,98865.0,98856.0,0.040493]
[1735175534587,0.0406147,98864.0,98856.0,0.040493]
[1735175535492,0.0406147,98864.0,98856.0,0.047493]
[1735175535992,0.0011247,98864.0,98860.0,0.040491]
[1735175536695,0.0021247,98864.0,98860.0,0.040491]
[1735175537487,0.0011247,98864.0,98862.0,0.04049]
[1735175537686,0.01050457,98864.0,98862.0,0.04049]
[1735175538792,0.01050457,98864.0,98862.0,0.007]
[1735175539001,0.01050457,98864.0,98862.0,0.04749]
[1735175539192,0.01050457,98864.0,98862.0,0.007]
[1735175541189,0.01050457,98864.0,98863.0,0.01451406]
[1735175548503,0.10894745,98865.0,98863.0,0.01451406]
[1735175548702,0.01935984,98865.0,98864.0,0.01451406]
[1735175549403,0.02899187,98865.0,98864.0,0.01451406]
[1735175549600,0.00963203,98865.0,98864.0,0.01451406]
[1735175549793,0.3608,98867.0,98864.0,0.01451406]
[1735175549996,0.001,98865.0,98864.0,0.01451406]
[1735175550197,0.001,98865.0,98857.0,0.3608]
[1735175550391,0.001,98865.0,98861.0,0.040491]
[1735175550796,0.001,98865.0,98862.0,0.05497092]
[1735175551205,0.001,98865.0,98863.0,0.01448092]
[1735175551409,0.001,98865.0,98864.0,0.01548092]
[1735175551711,0.09044846,98865.0,98864.0,0.001]
[1735175552107,0.09144846,98865.0,98863.0,0.04049]
[1735175552805,0.09144846,98865.0,98864.0,0.002]
[1735175553001,0.09044846,98865.0,98864.0,0.002]
[1735175553400,0.001,98865.0,98864.0,0.002]
[1735175554709,0.53241966,98867.0,98864.0,0.08318747]
[1735175554710,0.37206331,98867.0,98864.0,0.08318747]
[1735175554914,0.14919804,98869.0,98868.0,0.040488]
[1735175555208,0.14919804,98869.0,98868.0,0.08318647]
[1735175556018,0.11983114,98869.0,98868.0,0.08318647]
[1735175556203,0.11983114,98869.0,98868.0,0.08418647]
[1735175558005,0.14919804,98875.0,98874.0,0.040485]
[1735175558208,0.17924045,98881.0,98874.0,0.3608]
[1735175558403,0.17924045,98882.0,98880.0,0.040483]
[1735175558711,0.17924045,98882.0,98881.0,0.11119847]
[1735175559808,0.002,98882.0,98881.0,0.15168147]
[1735175561312,0.08985517,98883.0,98881.0,0.109983]
[1735175561611,0.08985517,98883.0,98882.0,0.3608]
[1735175563608,0.08985517,98883.0,98882.0,0.40349847]
[1735175563917,0.08985517,98885.0,98883.0,0.040482]
[1735175564114,0.08985517,98885.0,98884.0,0.04269847]
[1735175564411,0.08985517,98885.0,98883.0,0.08318047]
[1735175564815,0.08985517,98885.0,98883.0,0.040482]
[1735175565512,0.08985517,98891.0,98885.0,0.040481]
[1735175566097,0.08985517,98891.0,98886.0,0.04048]
[1735175566909,0.08985517,98889.0,98886.0,0.04048]
[1735175567511,0.08985517,98889.0,98882.0,0.3608]
[1735175567709,0.0669,98888.0,98882.0,0.3608]
[1735175568109,0.0669,98888.0,98869.0,0.04269847]
[1735175568414,0.040483,98881.0,98870.0,0.04269847]
[1735175568608,0.3608,98883.0,98870.0,0.04269847]
[1735175568811,0.3608,98883.0,98882.0,0.001]
[1735175569715,0.3608,98883.0,98875.0,0.040485]
[1735175569915,0.3618,98883.0,98876.0,0.040484]
[1735175570812,0.3618,98883.0,98870.0,0.00986717]
[1735175571009,0.3608,98874.0,98869.0,0.001]
[1735175571205,0.3608,98874.0,98868.0,0.04269847]
[1735175571410,0.3608,98874.0,98864.0,0.040489]
[1735175571915,0.3608,98874.0,98870.0,0.001]
[1735175572508,0.040486,98872.0,98864.0,0.041489]
[1735175572912,0.08974373,98870.0,98864.0,0.041489]
[1735175574116,0.13022973,98872.0,98870.0,0.001]
[1735175574321,0.08974373,98872.0,98870.0,0.001]
[1735175574813,0.001,98870.0,98865.0,0.040489]
[1735175575318,0.08974373,98872.0,98870.0,0.001]
[1735175575514,0.08974373,98873.0,98870.0,0.001]
[1735175577124,0.3717786,98874.0,98870.0,0.001]
[1735175577418,0.001,98870.0,98865.0,0.041489]
[1735175577821,0.3703386,98874.0,98870.0,0.001]
[1735175578521,0.46008233,98874.0,98870.0,0.001]
[1735175578822,0.50056733,98874.0,98870.0,0.001]
[1735175580714,0.13976733,98874.0,98870.0,0.041487]
[1735175581022,0.08974373,98873.0,98870.0,0.040487]
[1735175581227,0.040486,98872.0,98870.0,0.040487]
[1735175582709,0.042486,98872.0,98870.0,0.040487]
[1735175584323,0.047486,98872.0,98870.0,0.040487]
[1735175584820,0.002,98872.0,98870.0,0.040487]
[1735175585013,0.007,98872.0,98870.0,0.040487]
[1735175585210,0.007,98872.0,98871.0,0.1311]
[1735175585409,0.09474373,98872.0,98871.0,0.1311]
[1735175585718,0.09674373,98872.0,98871.0,0.1311]
[1735175586231,0.09674373,98872.0,98870.0,0.040487]
[1735175586722,0.007,98872.0,98870.0,0.040487]
[1735175587425,0.002,98872.0,98870.0,0.040487]
[1735175587721,0.007,98872.0,98870.0,0.040487]
[1735175597527,0.007,98872.0,98870.0,0.28257487]
[1735175598628,0.007,98872.0,98870.0,0.040487]
[1735175599327,0.007,98872.0,98871.0,0.04269847]
[1735175599823,0.040488,98868.0,98867.0,0.30122935]
[1735175600027,0.040489,98866.0,98865.0,0.30122935]
[1735175601622,0.041489,98866.0,98860.0,0.3608]
[1735175601822,0.043489,98866.0,98860.0,0.3608]
[1735175603328,0.08976436,98864.0,98860.0,0.3608]
[1735175604330,0.08976436,98864.0,98852.0,0.24253031]
[1735175604535,0.040494,98853.0,98852.0,0.24253031]
[1735175606728,0.040494,98853.0,98852.0,0.001]
[1735175607937,0.15095056,98862.0,98852.0,0.001]
[1735175608138,0.14955055,98863.0,98858.0,0.040492]
[1735175608328,0.14955055,98863.0,98859.0,0.040491]
[1735175608523,0.14955055,98863.0,98861.0,0.040491]
[1735175609937,0.0896117,98866.0,98857.0,0.3608]
[1735175610136,0.0896117,98866.0,98861.0,0.040491]
[1735175610534,0.001,98863.0,98861.0,0.040491]
[1735175610737,0.002,98863.0,98861.0,0.040491]
[1735175610935,0.003,98863.0,98861.0,0.040491]
[1735175611139,0.0896117,98862.0,98861.0,0.040491]
[1735175613341,0.0906117,98862.0,98861.0,0.040491]
[1735175613542,0.0926117,98862.0,98861.0,0.040491]
[1735175613930,0.003,98862.0,98861.0,0.040491]
[1735175616044,0.002,98862.0,98861.0,0.040491]
[1735175616239,0.001,98862.0,98861.0,0.040491]
[1735175617244,0.1300967,98875.0,98858.0,0.0746]
[1735175617546,0.1300967,98875.0,98867.0,0.3608]
[1735175617745,0.1300967,98875.0,98867.0,0.401288]
[1735175618644,0.0896117,98875.0,98871.0,0.040486]
[1735175618837,0.01388205,98873.0,98871.0,0.040486]
[1735175619544,0.0015177,98873.0,98871.0,0.040486]
[1735175619845,0.0045177,98873.0,98871.0,0.040486]
[1735175620049,0.0065177,98873.0,98871.0,0.040486]
[1735175620856,0.0085177,98873.0,98871.0,0.040486]
[1735175625347,0.0896117,98897.0,98872.0,0.24200471]
[1735175625551,0.0896117,98897.0,98896.0,0.040476]
[1735175626450,0.0896117,98897.0,98880.0,0.08043848]
[1735175626451,0.0896117,98897.0,98885.0,0.3608]
[1735175626650,0.040479,98891.0,98885.0,0.3608]
[1735175627238,0.0691,98890.0,98885.0,0.3608]
[1735175627751,0.0742,98889.0,98885.0,0.3608]
[1735175628351,0.0742,98889.0,98885.0,0.401281]
[1735175628553,0.0742,98889.0,98885.0,0.3608]
[1735175628855,0.3608,98886.0,98870.0,0.0711]
[1735175629151,0.040482,98884.0,98873.0,0.040486]
[1735175629352,0.040482,98884.0,98870.0,0.0711]
[1735175629353,0.040482,98884.0,98874.0,0.040485]
[1735175629553,0.040484,98878.0,98868.0,0.040488]
[1735175629955,0.3608,98872.0,98870.0,0.002]
[1735175630148,0.040486,98872.0,98870.0,0.006]
[1735175630544,0.040486,98872.0,98870.0,0.002]
[1735175631353,0.3608,98877.0,98870.0,0.002]
[1735175631549,0.3608,98877.0,98869.0,0.002]
[1735175631752,0.040485,98876.0,98869.0,0.002]
[1735175632151,0.040485,98874.0,98869.0,0.002]
[1735175632355,0.040485,98874.0,98865.0,0.040489]
[1735175632655,0.001,98872.0,98865.0,0.040489]
[1735175633247,0.041485,98874.0,98865.0,0.040489]
[1735175633758,0.040485,98874.0,98865.0,0.040489]
[1735175633958,0.040485,98874.0,98865.0,0.041489]
[1735175634355,0.040485,98874.0,98865.0,0.040489]
[1735175634550,0.040486,98873.0,98865.0,0.041489]
[1735175634750,0.040486,98873.0,98865.0,0.042489]
[1735175636259,0.040486,98873.0,98865.0,0.041489]
[1735175636655,0.040486,98873.0,98865.0,0.042489]
[1735175638764,0.1300977,98873.0,98865.0,0.042489]
[1735175639261,0.14174509,98873.0,98865.0,0.042489]
[1735175640856,0.0896117,98873.0,98865.0,0.002]
[1735175641049,0.0896117,98873.0,98871.0,0.040486]
[1735175641649,0.1300967,98874.0,98866.0,0.040489]
[1735175642055,0.001,98873.0,98866.0,0.040489]
[1735175642356,0.003,98873.0,98866.0,0.040489]
[1735175642764,0.001,98873.0,98866.0,0.040489]
[1735175643662,0.001,98873.0,98864.0,0.3608]
[1735175643868,0.0896117,98874.0,98873.0,0.040486]
[1735175644164,0.0896117,98874.0,98864.0,0.3608]
[1735175644165,0.0896117,98874.0,98872.0,0.3608]
[1735175644363,0.0896117,98874.0,98864.0,0.3608]
[1735175644562,0.040486,98873.0,98864.0,0.3608]
[1735175645156,0.040486,98873.0,98864.0,0.407289]
[1735175645367,0.1310977,98873.0,98864.0,0.409289]
[1735175645869,0.1300977,98873.0,98864.0,0.405289]
[1735175646468,0.040488,98868.0,98864.0,0.3648]
[1735175646967,0.260488,98867.0,98864.0,0.3628]
[1735175647268,0.260488,98867.0,98864.0,0.3638]
[1735175647667,0.3500997,98867.0,98864.0,0.3638]
[1735175647879,0.3500997,98867.0,98864.0,0.3628]
[1735175648370,0.3096117,98867.0,98864.0,0.002]
[1735175648573,0.040489,98866.0,98864.0,0.002]
[1735175648978,0.040489,98866.0,98859.0,0.040491]
[1735175650178,0.040489,98866.0,98859.0,0.041491]
[1735175650777,0.08987726,98862.0,98859.0,0.041491]
[1735175651184,0.08987726,98862.0,98859.0,0.042491]
[1735175651686,0.08987726,98862.0,98859.0,0.041491]
[1735175651876,0.08987726,98862.0,98859.0,0.042491]
[1735175652083,0.08987726,98862.0,98859.0,0.002]
[1735175652385,0.08987726,98861.0,98859.0,0.002]
[1735175653288,0.04049,98863.0,98859.0,0.002]
[1735175653475,0.04049,98863.0,98859.0,0.001]
[1735175653678,0.04049,98863.0,98859.0,0.002]
[1735175655186,0.040491,98860.0,98859.0,0.002]
[1735175655381,0.401291,98860.0,98859.0,0.002]
[1735175655990,0.040495,98851.0,98839.0,0.30122935]
[1735175656192,0.401299,98840.0,98839.0,0.30122935]
[1735175656692,0.401299,98840.0,98839.0,0.01465043]
[1735175657185,0.401299,98840.0,98839.0,0.01665043]
[1735175657186,0.3608,98840.0,98839.0,0.01665043]
[1735175657389,0.040497,98847.0,98839.0,0.01665043]
[1735175657587,0.040497,98847.0,98842.0,0.040498]
[1735175657995,0.040497,98847.0,98843.0,0.01465043]
[1735175658384,0.040497,98847.0,98840.0,0.1474]
[1735175658385,0.040497,98845.0,98844.0,0.01465043]
[1735175660995,0.040497,98845.0,98840.0,0.1474]
[1735175660996,0.041497,98845.0,98840.0,0.05667352]
[1735175661694,0.1612858,98845.0,98840.0,0.05667352]
[1735175661887,0.1612858,98845.0,98842.0,0.040498]
[1735175662088,0.1475,98844.0,98840.0,0.006]
[1735175662291,0.040499,98841.0,98840.0,0.006]
[1735175662700,0.040499,98841.0,98840.0,0.007]
[1735175664493,0.040499,98841.0,98840.0,0.001]
[1735175664801,0.040503,98832.0,98826.0,0.040505]
[1735175665795,0.040503,98832.0,98819.0,0.040508]
[1735175665996,0.041503,98832.0,98831.0,0.00112375]
[1735175666198,0.042503,98832.0,98831.0,0.00112375]
[1735175666998,0.04244069,98832.0,98831.0,0.00112375]
[1735175668300,0.05391617,98832.0,98831.0,0.00112375]
[1735175669005,0.05291617,98832.0,98831.0,0.00012375]
[1735175669304,0.05391617,98832.0,98831.0,0.00012375]
[1735175670702,0.05291617,98832.0,98831.0,0.00012375]
[1735175670901,0.05391617,98832.0,98831.0,0.00012375]
[1735175673308,0.05391617,98832.0,98831.0,0.01456868]
[1735175674707,0.71471617,98832.0,98803.0,0.040514]
[1735175675008,0.040511,98811.0,98803.0,0.040514]
[1735175675707,0.04060301,98811.0,98803.0,0.040514]
[1735175675905,9.201e-05,98811.0,98803.0,0.040514]
[1735175676096,0.040515,98802.0,98800.0,0.1]